[Event "Early-Titled-Tuesday-Blitz-April-23-2024"]
[Site "Chess.com"]
[Date "2024.04.23"]
[Round "11"]
[White "willyam13"]
[Black "Anu-triz"]
[Result "1-0"]
[WhiteElo "2437"]
[BlackElo "2152"]
[TimeControl "180+1"]
[EndTime "10:11:14 PDT"]
[Termination "willyam13 won by resignation"]

1. e4 {[%clk 0:03:00.9]} 1... e5 {[%clk 0:02:59.1]} 2. Nf3 {[%clk 0:03:01.2]}
2... Nc6 {[%clk 0:02:57.7]} 3. Bb5 {[%clk 0:03:01.8]} 3... a6 {[%clk 0:02:56.4]}
4. Ba4 {[%clk 0:03:02.2]} 4... Nf6 {[%clk 0:02:56.8]} 5. O-O {[%clk 0:03:02.5]}
5... Bc5 {[%clk 0:02:55.7]} 6. c3 {[%clk 0:03:01.4]} 6... b5 {[%clk 0:02:54.5]}
7. Bb3 {[%clk 0:03:00.2]} 7... d6 {[%clk 0:02:54.7]} 8. a4 {[%clk 0:02:59.9]}
8... Rb8 {[%clk 0:02:53.6]} 9. d4 {[%clk 0:03:00]} 9... Bb6 {[%clk 0:02:49.7]}
10. a5 {[%clk 0:02:59]} 10... Ba7 {[%clk 0:02:47.9]} 11. Be3 {[%clk 0:02:58.1]}
11... O-O {[%clk 0:02:43.8]} 12. h3 {[%clk 0:02:46.9]} 12... exd4 {[%clk
0:02:31.8]} 13. cxd4 {[%clk 0:02:40.9]} 13... Nxe4 {[%clk 0:02:31.5]} 14. Bd5
{[%clk 0:02:35.8]} 14... Qe8 {[%clk 0:02:30.6]} 15. Qc2 {[%clk 0:02:31.1]} 15...
Nb4 {[%clk 0:02:11.5]} 16. Qxe4 {[%clk 0:02:22.3]} 16... Qxe4 {[%clk 0:02:11.3]}
17. Bxe4 {[%clk 0:02:22.2]} 17... f5 {[%clk 0:02:11.9]} 18. Nc3 {[%clk 0:01:55]}
18... fxe4 {[%clk 0:02:08.6]} 19. Nxe4 {[%clk 0:01:55.9]} 19... Nc2 {[%clk
0:02:02.5]} 20. Rac1 {[%clk 0:01:54.3]} 20... Nxe3 {[%clk 0:02:03.4]} 21. fxe3
{[%clk 0:01:54.8]} 21... Bb7 {[%clk 0:01:44.1]} 22. Rxc7 {[%clk 0:01:40.7]}
22... Bxe4 {[%clk 0:01:35.1]} 23. Rxa7 {[%clk 0:01:39.7]} 23... Bb7 {[%clk
0:01:22.1]} 24. Ng5 {[%clk 0:01:18.9]} 24... Rxf1+ {[%clk 0:00:54.3]} 25. Kxf1
{[%clk 0:01:19.8]} 25... h6 {[%clk 0:00:35.9]} 26. Ne6 {[%clk 0:01:06.1]} 26...
Re8 {[%clk 0:00:20.4]} 27. Nc7 {[%clk 0:00:52]} 27... Rf8+ {[%clk 0:00:18.3]}
28. Kg1 {[%clk 0:00:50.7]} 28... Be4 {[%clk 0:00:15.5]} 29. Rxa6 {[%clk
0:00:46.9]} 29... d5 {[%clk 0:00:15.4]} 30. Nxb5 {[%clk 0:00:41.8]} 30... Rc8
{[%clk 0:00:13.9]} 31. Nc3 {[%clk 0:00:41.6]} 31... Bd3 {[%clk 0:00:12.8]} 32.
Rb6 {[%clk 0:00:40.8]} 32... Rf8 {[%clk 0:00:11.7]} 33. a6 {[%clk 0:00:36.8]}
33... Rf1+ {[%clk 0:00:09.8]} 34. Kh2 {[%clk 0:00:37.4]} 34... Ra1 {[%clk
0:00:10.4]} 35. Nxd5 {[%clk 0:00:35.4]} 35... Bxa6 {[%clk 0:00:10.1]} 36. Rb8+
{[%clk 0:00:29.5]} 36... Kh7 {[%clk 0:00:09.5]} 37. Ra8 {[%clk 0:00:29.7]} 37...
Ra2 {[%clk 0:00:06.4]} 38. Nb4 {[%clk 0:00:28.3]} 1-0

[Event "Early-Titled-Tuesday-Blitz-April-23-2024"]
[Site "Chess.com"]
[Date "2024.04.23"]
[Round "11"]
[White "Grandelicious"]
[Black "Rodalquilar"]
[Result "1-0"]
[WhiteElo "2903"]
[BlackElo "2741"]
[TimeControl "180+1"]
[EndTime "10:11:16 PDT"]
[Termination "Grandelicious won by resignation"]

1. Nf3 {[%clk 0:03:00.9]} 1... d5 {[%clk 0:03:00.2]} 2. e3 {[%clk 0:03:00.9]}
2... Nf6 {[%clk 0:03:00.3]} 3. c4 {[%clk 0:03:01.7]} 3... e6 {[%clk 0:02:59.3]}
4. b3 {[%clk 0:03:02.3]} 4... c5 {[%clk 0:02:59.2]} 5. Bb2 {[%clk 0:03:02.9]}
5... Nc6 {[%clk 0:02:59.1]} 6. cxd5 {[%clk 0:03:03.7]} 6... exd5 {[%clk
0:02:59.8]} 7. Be2 {[%clk 0:03:04.6]} 7... d4 {[%clk 0:02:59.2]} 8. exd4 {[%clk
0:02:56.9]} 8... cxd4 {[%clk 0:02:58.7]} 9. Bb5 {[%clk 0:02:57.5]} 9... Bd6
{[%clk 0:02:57.9]} 10. Bxd4 {[%clk 0:02:54]} 10... O-O {[%clk 0:02:55.4]} 11.
Be3 {[%clk 0:02:54.4]} 11... Ne5 {[%clk 0:02:49]} 12. Be2 {[%clk 0:02:46.1]}
12... Re8 {[%clk 0:02:40.2]} 13. Nc3 {[%clk 0:02:44.6]} 13... Bf5 {[%clk
0:02:25.7]} 14. O-O {[%clk 0:02:39.5]} 14... Qa5 {[%clk 0:02:00.6]} 15. Nd4
{[%clk 0:02:07.2]} 15... Bg6 {[%clk 0:01:44.7]} 16. Ndb5 {[%clk 0:02:01.3]}
16... Bb8 {[%clk 0:00:48.5]} 17. f4 {[%clk 0:01:49.6]} 17... a6 {[%clk
0:00:48.9]} 18. fxe5 {[%clk 0:01:43]} 18... Bxe5 {[%clk 0:00:49.8]} 19. Nd4
{[%clk 0:01:36.1]} 19... Rad8 {[%clk 0:00:49.7]} 20. b4 {[%clk 0:00:24.9]} 20...
Qc7 {[%clk 0:00:48.6]} 21. Nf3 {[%clk 0:00:23.7]} 21... Bxc3 {[%clk 0:00:45.8]}
22. Qc1 {[%clk 0:00:22]} 22... Rxe3 {[%clk 0:00:20.4]} 23. dxe3 {[%clk
0:00:20.3]} 23... Rc8 {[%clk 0:00:20.9]} 24. Nd4 {[%clk 0:00:14.9]} 24... Bxa1
{[%clk 0:00:19]} 25. Qxc7 {[%clk 0:00:13.5]} 25... Rxc7 {[%clk 0:00:19]} 26.
Rxa1 {[%clk 0:00:14.2]} 26... Nd5 {[%clk 0:00:19.6]} 27. Bf3 {[%clk 0:00:12.8]}
27... Nxe3 {[%clk 0:00:19.3]} 28. Re1 {[%clk 0:00:12.7]} 28... Re7 {[%clk
0:00:19.1]} 29. Kf2 {[%clk 0:00:11.5]} 29... Nf5 {[%clk 0:00:17.7]} 30. Rxe7
{[%clk 0:00:10.8]} 30... Nxe7 {[%clk 0:00:17.5]} 31. Bxb7 {[%clk 0:00:11.5]}
31... Bd3 {[%clk 0:00:16.9]} 32. Ke3 {[%clk 0:00:10.9]} 32... Bf1 {[%clk
0:00:17]} 33. a4 {[%clk 0:00:10.3]} 33... Kf8 {[%clk 0:00:16.9]} 34. g3 {[%clk
0:00:10.1]} 34... Ke8 {[%clk 0:00:17.1]} 35. Nb3 {[%clk 0:00:09.9]} 35... Nf5+
{[%clk 0:00:12.1]} 36. Kf2 {[%clk 0:00:08.6]} 36... Nd6 {[%clk 0:00:13]} 37.
Bc6+ {[%clk 0:00:08.4]} 1-0

[Event "Early-Titled-Tuesday-Blitz-April-23-2024"]
[Site "Chess.com"]
[Date "2024.04.23"]
[Round "11"]
[White "Sofia_Blokhin"]
[Black "ATM622"]
[Result "0-1"]
[WhiteElo "2286"]
[BlackElo "2510"]
[TimeControl "180+1"]
[EndTime "10:11:16 PDT"]
[Termination "ATM622 won by resignation"]

1. d4 {[%clk 0:03:00.9]} 1... Nf6 {[%clk 0:02:59.6]} 2. c4 {[%clk 0:03:01]} 2...
e6 {[%clk 0:02:59.5]} 3. Nc3 {[%clk 0:03:00.9]} 3... Bb4 {[%clk 0:02:58.9]} 4.
e3 {[%clk 0:03:01.1]} 4... O-O {[%clk 0:02:58.2]} 5. Bd3 {[%clk 0:03:00.8]} 5...
b6 {[%clk 0:02:58.4]} 6. Nf3 {[%clk 0:03:01.1]} 6... Bb7 {[%clk 0:02:58.6]} 7.
O-O {[%clk 0:03:00.6]} 7... d6 {[%clk 0:02:58.9]} 8. Qc2 {[%clk 0:02:58.7]} 8...
Bxf3 {[%clk 0:02:53.7]} 9. gxf3 {[%clk 0:02:58.8]} 9... c5 {[%clk 0:02:53.2]}
10. a3 {[%clk 0:02:56.8]} 10... Bxc3 {[%clk 0:02:53.2]} 11. bxc3 {[%clk
0:02:56.9]} 11... Nbd7 {[%clk 0:02:49.9]} 12. e4 {[%clk 0:02:56.9]} 12... e5
{[%clk 0:02:49.4]} 13. d5 {[%clk 0:02:50.7]} 13... Nh5 {[%clk 0:02:48.5]} 14.
Kh1 {[%clk 0:02:45.4]} 14... Kh8 {[%clk 0:02:45.1]} 15. Rg1 {[%clk 0:02:44.6]}
15... Nf4 {[%clk 0:02:39.6]} 16. Rg4 {[%clk 0:02:33]} 16... Nf6 {[%clk
0:02:35.8]} 17. Rxf4 {[%clk 0:02:17.8]} 17... exf4 {[%clk 0:02:35.9]} 18. Bxf4
{[%clk 0:02:17.9]} 18... Nh5 {[%clk 0:02:27.4]} 19. Be3 {[%clk 0:02:09.9]} 19...
Qf6 {[%clk 0:02:25.3]} 20. Be2 {[%clk 0:02:00.7]} 20... Nf4 {[%clk 0:02:16.5]}
21. Rg1 {[%clk 0:01:48.2]} 21... Nxe2 {[%clk 0:02:12.7]} 22. Qxe2 {[%clk
0:01:47.4]} 22... Qxc3 {[%clk 0:01:57.1]} 23. Bc1 {[%clk 0:01:43.9]} 23... f6
{[%clk 0:01:48.1]} 24. f4 {[%clk 0:01:40.3]} 24... Qh3 {[%clk 0:01:40.5]} 25.
Rg3 {[%clk 0:01:37.4]} 25... Qd7 {[%clk 0:01:40.4]} 26. Qh5 {[%clk 0:01:33.2]}
26... Qe8 {[%clk 0:01:31.2]} 27. Qh4 {[%clk 0:01:28.6]} 27... Qxe4+ {[%clk
0:01:30.7]} 28. Rg2 {[%clk 0:01:12.7]} 28... Qxc4 {[%clk 0:01:16.7]} 29. Bb2
{[%clk 0:01:08.5]} 29... Qxd5 {[%clk 0:01:05.6]} 30. Qg4 {[%clk 0:01:07]} 30...
Rf7 {[%clk 0:00:54.6]} 31. h4 {[%clk 0:01:03.8]} 31... Re8 {[%clk 0:00:30.9]}
32. Kh2 {[%clk 0:01:01]} 32... Qe6 {[%clk 0:00:25.1]} 33. f5 {[%clk 0:00:57.7]}
33... Qe4 {[%clk 0:00:23.7]} 34. Qh5 {[%clk 0:00:54.3]} 34... Qf4+ {[%clk
0:00:19.4]} 35. Kh3 {[%clk 0:00:52.5]} 35... Ref8 {[%clk 0:00:16.4]} 36. f3
{[%clk 0:00:28.3]} 36... d5 {[%clk 0:00:14.9]} 37. Re2 {[%clk 0:00:27.8]} 37...
d4 {[%clk 0:00:09.8]} 38. Qxf7 {[%clk 0:00:27.2]} 38... Qxf3+ {[%clk 0:00:10]}
39. Kh2 {[%clk 0:00:23.9]} 39... Qxe2+ {[%clk 0:00:10]} 40. Kg3 {[%clk
0:00:23.6]} 40... Rxf7 {[%clk 0:00:10.4]} 0-1

[Event "Early-Titled-Tuesday-Blitz-April-23-2024"]
[Site "Chess.com"]
[Date "2024.04.23"]
[Round "11"]
[White "kuchma777"]
[Black "Evgeny81"]
[Result "0-1"]
[WhiteElo "2475"]
[BlackElo "2765"]
[TimeControl "180+1"]
[EndTime "10:11:17 PDT"]
[Termination "Evgeny81 won on time"]

1. e4 {[%clk 0:02:21.1]} 1... e6 {[%clk 0:02:59.1]} 2. d4 {[%clk 0:02:21.1]}
2... d5 {[%clk 0:02:59.9]} 3. Nd2 {[%clk 0:02:21.6]} 3... Nd7 {[%clk 0:02:59.6]}
4. Ngf3 {[%clk 0:02:21.8]} 4... Ne7 {[%clk 0:02:58.2]} 5. Bd3 {[%clk 0:02:21.5]}
5... c5 {[%clk 0:02:58.6]} 6. c3 {[%clk 0:02:21.4]} 6... cxd4 {[%clk 0:02:58.3]}
7. cxd4 {[%clk 0:02:22.3]} 7... dxe4 {[%clk 0:02:58.4]} 8. Nxe4 {[%clk
0:02:23.2]} 8... Nd5 {[%clk 0:02:58.7]} 9. O-O {[%clk 0:02:23.2]} 9... Be7
{[%clk 0:02:59.3]} 10. Re1 {[%clk 0:02:23.6]} 10... O-O {[%clk 0:02:59.6]} 11.
a3 {[%clk 0:02:23.9]} 11... b6 {[%clk 0:03:00]} 12. Ne5 {[%clk 0:02:12.5]} 12...
Bb7 {[%clk 0:02:57.7]} 13. Qe2 {[%clk 0:01:43.9]} 13... Rc8 {[%clk 0:02:47.2]}
14. Bd2 {[%clk 0:01:43.8]} 14... N5f6 {[%clk 0:02:40.7]} 15. Rac1 {[%clk
0:01:41.5]} 15... Nxe4 {[%clk 0:02:35.9]} 16. Bxe4 {[%clk 0:01:42.3]} 16... Bxe4
{[%clk 0:02:36.2]} 17. Qxe4 {[%clk 0:01:39.5]} 17... Rxc1 {[%clk 0:02:28.8]} 18.
Rxc1 {[%clk 0:01:34.2]} 18... Nxe5 {[%clk 0:02:28.1]} 19. Qxe5 {[%clk
0:01:33.9]} 19... Bf6 {[%clk 0:02:25.3]} 20. Qe2 {[%clk 0:01:20.9]} 20... Qxd4
{[%clk 0:02:21.7]} 21. Bc3 {[%clk 0:01:07]} 21... Rc8 {[%clk 0:02:18.4]} 22. Rd1
{[%clk 0:00:58.7]} 22... Qc4 {[%clk 0:02:07.9]} 23. Qd2 {[%clk 0:00:37.3]} 23...
h5 {[%clk 0:01:17.6]} 24. Bxf6 {[%clk 0:00:33.9]} 24... gxf6 {[%clk 0:01:18.5]}
25. h3 {[%clk 0:00:31.7]} 25... Kg7 {[%clk 0:01:16.8]} 26. Qe3 {[%clk
0:00:27.6]} 26... Qc5 {[%clk 0:01:11.6]} 27. Qg3+ {[%clk 0:00:21.5]} 27... Qg5
{[%clk 0:01:11.4]} 28. Qd3 {[%clk 0:00:09.6]} 28... Rc1 {[%clk 0:01:07.7]} 29.
g3 {[%clk 0:00:10.1]} 29... Qf5 {[%clk 0:01:01]} 30. Qd4 {[%clk 0:00:04.8]}
30... Rxd1+ {[%clk 0:00:59.2]} 31. Qxd1 {[%clk 0:00:05.7]} 31... Qxh3 {[%clk
0:00:59.5]} 32. Qd7 {[%clk 0:00:05.2]} 32... Qf5 {[%clk 0:00:48.6]} 33. Qxa7
{[%clk 0:00:04.8]} 33... Qb1+ {[%clk 0:00:48.4]} 34. Kg2 {[%clk 0:00:05]} 34...
Qxb2 {[%clk 0:00:49.1]} 35. Qa4 {[%clk 0:00:03.7]} 35... Qe5 {[%clk 0:00:46.2]}
36. Qh4 {[%clk 0:00:03.8]} 36... Qd5+ {[%clk 0:00:43.8]} 37. Kh2 {[%clk
0:00:04]} 37... Qf3 {[%clk 0:00:41.1]} 38. Kg1 {[%clk 0:00:01.6]} 38... Qg4
{[%clk 0:00:37.6]} 39. Qh2 {[%clk 0:00:02.2]} 39... h4 {[%clk 0:00:26.4]} 40.
Qxh4 {[%clk 0:00:02.4]} 40... Qxh4 {[%clk 0:00:26.7]} 0-1

[Event "Early-Titled-Tuesday-Blitz-April-23-2024"]
[Site "Chess.com"]
[Date "2024.04.23"]
[Round "11"]
[White "SlavenPastar"]
[Black "ImportedItalianMaple"]
[Result "0-1"]
[WhiteElo "2608"]
[BlackElo "2478"]
[TimeControl "180+1"]
[EndTime "10:11:22 PDT"]
[Termination "ImportedItalianMaple won by resignation"]

1. Nf3 {[%clk 0:02:59.2]} 1... g6 {[%clk 0:03:00.3]} 2. g3 {[%clk 0:02:59.1]}
2... Bg7 {[%clk 0:03:00.8]} 3. d4 {[%clk 0:02:59.7]} 3... b6 {[%clk 0:02:58.5]}
4. Bg2 {[%clk 0:02:59.4]} 4... Bb7 {[%clk 0:02:59.1]} 5. c4 {[%clk 0:03:00]}
5... d6 {[%clk 0:02:59.1]} 6. Nc3 {[%clk 0:03:00.6]} 6... Nd7 {[%clk 0:02:57.9]}
7. d5 {[%clk 0:02:59]} 7... Bxc3+ {[%clk 0:02:50]} 8. bxc3 {[%clk 0:02:59.9]}
8... e5 {[%clk 0:02:50.4]} 9. dxe6 {[%clk 0:02:48.3]} 9... fxe6 {[%clk
0:02:50.2]} 10. O-O {[%clk 0:02:46.1]} 10... Ngf6 {[%clk 0:02:48.6]} 11. e4
{[%clk 0:02:35.1]} 11... e5 {[%clk 0:02:44.4]} 12. Ng5 {[%clk 0:02:30.2]} 12...
Qe7 {[%clk 0:02:43.9]} 13. Bh3 {[%clk 0:02:21.9]} 13... Nc5 {[%clk 0:02:42.9]}
14. Be3 {[%clk 0:02:13.3]} 14... Nfxe4 {[%clk 0:02:40.4]} 15. Nxe4 {[%clk
0:02:04.2]} 15... Bxe4 {[%clk 0:02:34.1]} 16. f4 {[%clk 0:01:58.3]} 16... O-O
{[%clk 0:02:28.9]} 17. Bxc5 {[%clk 0:01:54]} 17... bxc5 {[%clk 0:02:24.1]} 18.
Qe2 {[%clk 0:01:52.7]} 18... exf4 {[%clk 0:02:16.4]} 19. Rae1 {[%clk 0:01:49.5]}
19... Rae8 {[%clk 0:02:16.9]} 20. gxf4 {[%clk 0:01:24.7]} 20... Rf7 {[%clk
0:02:11.2]} 21. Qg4 {[%clk 0:00:58]} 21... Qf8 {[%clk 0:01:37.1]} 22. f5 {[%clk
0:00:45.3]} 22... Bxf5 {[%clk 0:01:15.1]} 23. Rxe8 {[%clk 0:00:41.1]} 23... Qxe8
{[%clk 0:01:16]} 24. Qg3 {[%clk 0:00:33.2]} 24... Bxh3 {[%clk 0:01:13.7]} 25.
Rxf7 {[%clk 0:00:32.4]} 25... Qxf7 {[%clk 0:01:12.6]} 26. Qxh3 {[%clk 0:00:33]}
26... Kg7 {[%clk 0:01:02.5]} 27. Qc8 {[%clk 0:00:31.9]} 27... Qe7 {[%clk
0:00:59.3]} 28. Kf2 {[%clk 0:00:25.8]} 28... a5 {[%clk 0:00:55.2]} 29. Qb7
{[%clk 0:00:18.4]} 29... a4 {[%clk 0:00:54.2]} 30. Qa7 {[%clk 0:00:18.1]} 30...
Qf7+ {[%clk 0:00:50.2]} 31. Ke3 {[%clk 0:00:15.2]} 31... a3 {[%clk 0:00:50.5]}
32. Kd3 {[%clk 0:00:11.6]} 32... Qf3+ {[%clk 0:00:47.1]} 33. Kc2 {[%clk
0:00:08.9]} 33... Qe2+ {[%clk 0:00:45.2]} 34. Kc1 {[%clk 0:00:06.6]} 34... Qb2+
{[%clk 0:00:41.9]} 35. Kd1 {[%clk 0:00:06.7]} 35... Qb1+ {[%clk 0:00:41.1]} 36.
Kd2 {[%clk 0:00:06.4]} 36... Qxa2+ {[%clk 0:00:41.8]} 37. Ke3 {[%clk 0:00:06.1]}
37... Qxc4 {[%clk 0:00:38]} 38. Qxa3 {[%clk 0:00:04.9]} 38... d5 {[%clk
0:00:35]} 39. Qa5 {[%clk 0:00:05.2]} 39... d4+ {[%clk 0:00:33.9]} 40. Ke4 {[%clk
0:00:05.4]} 40... Qe6+ {[%clk 0:00:32.6]} 41. Kd3 {[%clk 0:00:05]} 41... Qd6
{[%clk 0:00:32.7]} 42. c4 {[%clk 0:00:04]} 42... Qxh2 {[%clk 0:00:31.5]} 43.
Qxc5 {[%clk 0:00:04.4]} 43... Qd6 {[%clk 0:00:30.1]} 44. Qxd6 {[%clk 0:00:02.3]}
44... cxd6 {[%clk 0:00:30.5]} 45. Kxd4 {[%clk 0:00:03.2]} 45... Kf6 {[%clk
0:00:31]} 46. Kd5 {[%clk 0:00:04.1]} 46... Ke7 {[%clk 0:00:31.5]} 0-1

[Event "Early-Titled-Tuesday-Blitz-April-23-2024"]
[Site "Chess.com"]
[Date "2024.04.23"]
[Round "11"]
[White "PonyQueen07"]
[Black "InitiatingASC"]
[Result "1-0"]
[WhiteElo "2231"]
[BlackElo "2331"]
[TimeControl "180+1"]
[EndTime "10:11:23 PDT"]
[Termination "PonyQueen07 won by checkmate"]

1. c4 {[%clk 0:03:00.9]} 1... e6 {[%clk 0:02:57.1]} 2. e4 {[%clk 0:03:00.8]}
2... c5 {[%clk 0:02:57.2]} 3. Nc3 {[%clk 0:03:00.6]} 3... a6 {[%clk 0:02:56.4]}
4. g3 {[%clk 0:03:01.1]} 4... Nf6 {[%clk 0:02:54.6]} 5. Bg2 {[%clk 0:03:01.6]}
5... Nc6 {[%clk 0:02:54.1]} 6. Nge2 {[%clk 0:03:02.2]} 6... Nd4 {[%clk
0:02:53.3]} 7. O-O {[%clk 0:03:02]} 7... d6 {[%clk 0:02:51.2]} 8. d3 {[%clk
0:03:02.5]} 8... Be7 {[%clk 0:02:48.3]} 9. Be3 {[%clk 0:03:02.7]} 9... e5 {[%clk
0:02:46.3]} 10. h3 {[%clk 0:03:01.1]} 10... Nd7 {[%clk 0:02:44.5]} 11. f4 {[%clk
0:02:58.4]} 11... f6 {[%clk 0:02:44.3]} 12. Nd5 {[%clk 0:02:51.9]} 12... Nxe2+
{[%clk 0:02:34.6]} 13. Qxe2 {[%clk 0:02:51.6]} 13... Nf8 {[%clk 0:02:30.8]} 14.
f5 {[%clk 0:02:49.4]} 14... Bd7 {[%clk 0:02:31.1]} 15. Qh5+ {[%clk 0:02:46.2]}
15... g6 {[%clk 0:02:25.2]} 16. fxg6 {[%clk 0:02:44.9]} 16... Nxg6 {[%clk
0:02:25.6]} 17. Bh6 {[%clk 0:02:41.2]} 17... Kf7 {[%clk 0:02:20.8]} 18. Bg5
{[%clk 0:02:34.3]} 18... Be6 {[%clk 0:02:16.6]} 19. Bxf6 {[%clk 0:02:30.6]}
19... Bxf6 {[%clk 0:02:12.5]} 20. Rxf6+ {[%clk 0:02:26.4]} 20... Qxf6 {[%clk
0:02:09.8]} 21. Nxf6 {[%clk 0:02:27.3]} 21... Kxf6 {[%clk 0:02:10.6]} 22. Rf1+
{[%clk 0:02:24.7]} 22... Kg7 {[%clk 0:02:07]} 23. Qg5 {[%clk 0:02:16.1]} 23...
Raf8 {[%clk 0:01:58.8]} 24. h4 {[%clk 0:02:08.5]} 24... h6 {[%clk 0:01:57.3]}
25. Qe3 {[%clk 0:02:01.5]} 25... Rxf1+ {[%clk 0:01:52.6]} 26. Bxf1 {[%clk
0:02:01]} 26... Rf8 {[%clk 0:01:51.3]} 27. Be2 {[%clk 0:01:53]} 27... Bd7 {[%clk
0:01:43.4]} 28. Bh5 {[%clk 0:01:44.2]} 28... Ne7 {[%clk 0:01:39.8]} 29. g4
{[%clk 0:01:36.5]} 29... Rf4 {[%clk 0:01:35.9]} 30. g5 {[%clk 0:01:28.1]} 30...
Ng6 {[%clk 0:01:25.7]} 31. Bxg6 {[%clk 0:01:21.3]} 31... Kxg6 {[%clk 0:01:25.7]}
32. gxh6 {[%clk 0:01:19.8]} 32... Kxh6 {[%clk 0:01:25.9]} 33. Kh2 {[%clk
0:01:13.7]} 33... Kh5 {[%clk 0:01:25.1]} 34. Qe2+ {[%clk 0:00:32.6]} 34... Kxh4
{[%clk 0:01:21.2]} 35. Qe1+ {[%clk 0:00:23.2]} 35... Kh5 {[%clk 0:01:16.9]} 36.
Qa5 {[%clk 0:00:20.6]} 36... Bc6 {[%clk 0:00:29.1]} 37. Qd8 {[%clk 0:00:13.6]}
37... Kg4 {[%clk 0:00:19.5]} 38. Qxd6 {[%clk 0:00:11]} 38... Kf3 {[%clk
0:00:18.1]} 39. Qxc5 {[%clk 0:00:04.5]} 39... Rh4+ {[%clk 0:00:17.5]} 40. Kg1
{[%clk 0:00:04.6]} 40... Rg4+ {[%clk 0:00:17.6]} 41. Kf1 {[%clk 0:00:04.9]}
41... Rf4 {[%clk 0:00:15.4]} 42. Ke1 {[%clk 0:00:04.4]} 42... Rg4 {[%clk
0:00:13.5]} 43. Qf2# {[%clk 0:00:04.2]} 1-0

[Event "Early-Titled-Tuesday-Blitz-April-23-2024"]
[Site "Chess.com"]
[Date "2024.04.23"]
[Round "11"]
[White "pfalcon1949"]
[Black "BenchGM"]
[Result "0-1"]
[WhiteElo "1973"]
[BlackElo "2233"]
[TimeControl "180+1"]
[EndTime "10:11:23 PDT"]
[Termination "BenchGM won by checkmate"]

1. e4 {[%clk 0:03:00.9]} 1... c5 {[%clk 0:02:59.7]} 2. Nf3 {[%clk 0:02:57.1]}
2... e6 {[%clk 0:02:59.9]} 3. d4 {[%clk 0:02:56.1]} 3... cxd4 {[%clk 0:03:00.2]}
4. Nxd4 {[%clk 0:02:56.3]} 4... Nc6 {[%clk 0:03:00.8]} 5. Nc3 {[%clk 0:02:54]}
5... Qc7 {[%clk 0:03:00.1]} 6. Be3 {[%clk 0:02:42.3]} 6... a6 {[%clk 0:02:59.7]}
7. a3 {[%clk 0:02:41.7]} 7... b5 {[%clk 0:02:55.2]} 8. Qf3 {[%clk 0:02:41]} 8...
Bb7 {[%clk 0:02:25.1]} 9. Qg3 {[%clk 0:02:35.3]} 9... Ne5 {[%clk 0:01:49.2]} 10.
f4 {[%clk 0:02:27.1]} 10... Nc4 {[%clk 0:01:48.4]} 11. Bxc4 {[%clk 0:02:26.5]}
11... Qxc4 {[%clk 0:01:46.5]} 12. O-O-O {[%clk 0:02:12.1]} 12... Nf6 {[%clk
0:01:30]} 13. e5 {[%clk 0:02:00.7]} 13... Ne4 {[%clk 0:01:19.8]} 14. Nxe4 {[%clk
0:01:55.9]} 14... Bxe4 {[%clk 0:01:18.7]} 15. c3 {[%clk 0:01:48.4]} 15... b4
{[%clk 0:01:05]} 16. axb4 {[%clk 0:01:36.3]} 16... a5 {[%clk 0:00:42]} 17. Nc2
{[%clk 0:01:22.2]} 17... axb4 {[%clk 0:00:39.7]} 18. Rd4 {[%clk 0:01:19.4]}
18... Qc6 {[%clk 0:00:32.5]} 19. Nxb4 {[%clk 0:01:15.5]} 19... Bxb4 {[%clk
0:00:17.1]} 20. Rxb4 {[%clk 0:01:15.3]} 20... O-O {[%clk 0:00:16.2]} 21. Rd1
{[%clk 0:01:07.3]} 21... Ra1+ {[%clk 0:00:15.5]} 22. Kd2 {[%clk 0:01:06]} 22...
Qd5+ {[%clk 0:00:15.2]} 23. Rd4 {[%clk 0:01:03]} 23... Rxd1+ {[%clk 0:00:15.3]}
24. Kxd1 {[%clk 0:01:02]} 24... Qb3+ {[%clk 0:00:15.6]} 25. Ke2 {[%clk
0:00:53.5]} 25... Qxb2+ {[%clk 0:00:15.4]} 26. Rd2 {[%clk 0:00:53.6]} 26... Qb5+
{[%clk 0:00:15.1]} 27. Kf2 {[%clk 0:00:53.1]} 27... Ra8 {[%clk 0:00:14.4]} 28.
f5 {[%clk 0:00:52.5]} 28... Ra1 {[%clk 0:00:13.6]} 29. Re2 {[%clk 0:00:48.9]}
29... Bxf5 {[%clk 0:00:09]} 30. Bh6 {[%clk 0:00:48]} 30... Bg6 {[%clk
0:00:08.9]} 31. h4 {[%clk 0:00:47.4]} 31... gxh6 {[%clk 0:00:08.9]} 32. h5
{[%clk 0:00:47.2]} 32... Qd3 {[%clk 0:00:08.4]} 33. hxg6 {[%clk 0:00:47.1]}
33... Qxg3+ {[%clk 0:00:08.6]} 34. Kxg3 {[%clk 0:00:46.7]} 34... hxg6 {[%clk
0:00:09.5]} 35. Rb2 {[%clk 0:00:45.4]} 35... Rc1 {[%clk 0:00:09.4]} 36. Rb8+
{[%clk 0:00:45.8]} 36... Kg7 {[%clk 0:00:08.5]} 37. Rd8 {[%clk 0:00:46.7]} 37...
Rxc3+ {[%clk 0:00:08.5]} 38. Kg4 {[%clk 0:00:45]} 38... h5+ {[%clk 0:00:07.3]}
39. Kh4 {[%clk 0:00:44.1]} 39... Kh6 {[%clk 0:00:06.6]} 40. Rh8+ {[%clk
0:00:44]} 40... Kg7 {[%clk 0:00:07]} 41. Rd8 {[%clk 0:00:44.9]} 41... Re3 {[%clk
0:00:06.9]} 42. Rxd7 {[%clk 0:00:44.9]} 42... Rxe5 {[%clk 0:00:07.1]} 43. g3
{[%clk 0:00:45.2]} 43... Re3 {[%clk 0:00:06.9]} 44. Kh3 {[%clk 0:00:45.6]} 44...
Kf6 {[%clk 0:00:06.9]} 45. Rb7 {[%clk 0:00:45.8]} 45... g5 {[%clk 0:00:07.3]}
46. Rb6 {[%clk 0:00:44.8]} 46... Kg6 {[%clk 0:00:07.5]} 47. Rb5 {[%clk 0:00:44]}
47... Re2 {[%clk 0:00:07]} 48. Rb4 {[%clk 0:00:42.8]} 48... g4+ {[%clk
0:00:06.9]} 49. Rxg4+ {[%clk 0:00:42.1]} 49... hxg4+ {[%clk 0:00:07.3]} 50. Kxg4
{[%clk 0:00:42.6]} 50... f5+ {[%clk 0:00:07.7]} 51. Kh3 {[%clk 0:00:41.9]} 51...
Kg5 {[%clk 0:00:07.9]} 52. g4 {[%clk 0:00:41.3]} 52... fxg4+ {[%clk 0:00:08.2]}
53. Kg3 {[%clk 0:00:41.6]} 53... Re3+ {[%clk 0:00:08.1]} 54. Kg2 {[%clk
0:00:42]} 54... Ra3 {[%clk 0:00:08.5]} 55. Kf2 {[%clk 0:00:42.1]} 55... Kf4
{[%clk 0:00:08.8]} 56. Kg2 {[%clk 0:00:43]} 56... Ra2+ {[%clk 0:00:08.4]} 57.
Kf1 {[%clk 0:00:43]} 57... Ke3 {[%clk 0:00:08.3]} 58. Ke1 {[%clk 0:00:43.9]}
58... Ra1# {[%clk 0:00:07.8]} 0-1